[Event "Titled Tuesday Blitz October 5 2021"]
[White "Zhigalko, Sergei"]
[Black "Madaminov, Mukhiddin"]
[WhiteFideId "13502956"]
[BlackFideId "14210703"]
[WhiteElo "2899"]
[BlackElo "2683"]
[Result "0-1"]
[Round "09"]
[TimeControl "180+1"]
[Date "2021.10.05"]
[WhiteClock "0:00:04"]
[BlackClock "0:00:20"]

1. e4 {[%clk 0:03:00]}  e5 {[%clk 0:02:59]} 2. Nf3 {[%clk 0:03:00]}  Nc6 {[%clk 0:02:59]} 3. Bb5 {[%clk 0:03:01]}  a6 {[%clk 0:02:59]} 4. Ba4 {[%clk 0:03:01]}  Nf6 {[%clk 0:03:00]} 5. O-O {[%clk 0:03:01]}  Nxe4 {[%clk 0:02:58]} 6. d4 {[%clk 0:03:01]}  b5 {[%clk 0:02:59]} 7. Bb3 {[%clk 0:03:01]}  d5 {[%clk 0:02:59]} 8. dxe5 {[%clk 0:03:02]}  Be6 {[%clk 0:03:00]} 9. Nbd2 {[%clk 0:03:02]}  Be7 {[%clk 0:03:00]} 10. c3 {[%clk 0:03:01]}  O-O {[%clk 0:03:01]} 11. Bc2 {[%clk 0:02:57]}  f5 {[%clk 0:03:01]} 12. Nb3 {[%clk 0:02:58]}  Qd7 {[%clk 0:03:00]} 13. Nbd4 {[%clk 0:02:57]}  Nxd4 {[%clk 0:03:00]} 14. Nxd4 {[%clk 0:02:58]}  c5 {[%clk 0:03:00]} 15. Nxe6 {[%clk 0:02:58]}  Qxe6 {[%clk 0:03:00]} 16. f3 {[%clk 0:02:58]}  Ng5 {[%clk 0:03:00]} 17. a4 {[%clk 0:02:58]}  g6 {[%clk 0:03:00]} 18. Kh1 {[%clk 0:02:52]}  Rfd8 {[%clk 0:02:49]} 19. Bxg5 {[%clk 0:02:48]}  Bxg5 {[%clk 0:02:48]} 20. f4 {[%clk 0:02:48]}  Be7 {[%clk 0:02:48]} 21. Qf3 {[%clk 0:02:44]}  Rac8 {[%clk 0:02:11]} 22. axb5 {[%clk 0:02:43]}  axb5 {[%clk 0:02:12]} 23. Ra5 {[%clk 0:02:31]}  Qc6 {[%clk 0:01:39]} 24. Rfa1 {[%clk 0:01:44]}  Ra8 {[%clk 0:01:39]} 25. Ra7 {[%clk 0:01:05]}  Kf8 {[%clk 0:01:12]} 26. Qh3 {[%clk 0:00:56]}  Rxa7 {[%clk 0:00:52]} 27. Rxa7 {[%clk 0:00:57]}  Ra8 {[%clk 0:00:53]} 28. Rxa8+ {[%clk 0:00:11]}  Qxa8 {[%clk 0:00:54]} 29. Qd3 {[%clk 0:00:07]}  Qa1+ {[%clk 0:00:30]} 30. Bd1 {[%clk 0:00:07]}  Qxb2 {[%clk 0:00:30]} 31. Qxd5 {[%clk 0:00:04]}  Qf2 {[%clk 0:00:20]} 0-1


[Site "https://www.chess.com"]

[Event "Titled Tuesday Blitz October 5 2021"]
[White "Alvarez Calzadilla, Jose Avelino"]
[Black "Garcia Garcia, Alejandro"]
[WhiteFideId "3526151"]
[BlackFideId "3516334"]
[WhiteElo "2515"]
[BlackElo "2131"]
[Result "1-0"]
[Round "10"]
[TimeControl "180+1"]
[Date "2021.10.05"]
[WhiteClock "0:00:44"]
[BlackClock "0:00:12"]

1. d4 {[%clk 0:03:00]}  Nf6 {[%clk 0:02:59]} 2. Nf3 {[%clk 0:02:58]}  g6 {[%clk 0:02:59]} 3. g3 {[%clk 0:02:57]}  Bg7 {[%clk 0:02:59]} 4. Bg2 {[%clk 0:02:58]}  O-O {[%clk 0:03:00]} 5. O-O {[%clk 0:02:58]}  d6 {[%clk 0:03:01]} 6. b3 {[%clk 0:02:58]}  Nbd7 {[%clk 0:03:01]} 7. Bb2 {[%clk 0:02:58]}  e5 {[%clk 0:03:01]} 8. dxe5 {[%clk 0:02:58]}  Ng4 {[%clk 0:03:01]} 9. c4 {[%clk 0:02:58]}  Ndxe5 {[%clk 0:03:00]} 10. Nc3 {[%clk 0:02:56]}  Re8 {[%clk 0:02:57]} 11. Qd2 {[%clk 0:02:55]}  h5 {[%clk 0:02:55]} 12. Rac1 {[%clk 0:02:48]}  Nxf3+ {[%clk 0:02:53]} 13. exf3 {[%clk 0:02:43]}  Nf6 {[%clk 0:02:47]} 14. f4 {[%clk 0:02:42]}  h4 {[%clk 0:02:35]} 15. Nd5 {[%clk 0:02:31]}  h3 {[%clk 0:02:21]} 16. Bf3 {[%clk 0:02:25]}  Nxd5 {[%clk 0:02:00]} 17. Bxg7 {[%clk 0:02:24]}  Kxg7 {[%clk 0:01:45]} 18. cxd5 {[%clk 0:02:24]}  Kg8 {[%clk 0:01:28]} 19. Qc3 {[%clk 0:01:46]}  Re7 {[%clk 0:01:28]} 20. Qf6 {[%clk 0:01:45]}  Bf5 {[%clk 0:01:27]} 21. Qd4 {[%clk 0:01:33]}  Qe8 {[%clk 0:01:18]} 22. g4 {[%clk 0:01:15]}  Be4 {[%clk 0:01:15]} 23. Rc3 {[%clk 0:01:13]}  a5 {[%clk 0:00:20]} 24. Qf6 {[%clk 0:01:08]}  Bxf3 {[%clk 0:00:17]} 25. Rxf3 {[%clk 0:01:09]}  Qd7 {[%clk 0:00:12]} 26. f5 {[%clk 0:00:55]}  Re4 {[%clk 0:00:12]} 27. Rxh3 {[%clk 0:00:44]} 1-0


[Site "https://www.chess.com"]

[Event "Titled Tuesday Blitz October 5 2021"]
[White "Aradhya, Garg"]
[Black "Kamsky, Gata"]
[WhiteFideId "25006746"]
[BlackFideId "2000024"]
[WhiteElo "2146"]
[BlackElo "2603"]
[Result "1-0"]
[Round "10"]
[TimeControl "180+1"]
[Date "2021.10.05"]
[WhiteClock "0:00:19"]
[BlackClock "0:00:09"]

1. d4 {[%clk 0:03:00]}  Nf6 {[%clk 0:02:57]} 2. c4 {[%clk 0:03:01]}  e6 {[%clk 0:02:55]} 3. Bf4 {[%clk 0:03:00]}  b6 {[%clk 0:02:49]} 4. Nf3 {[%clk 0:02:59]}  Bb7 {[%clk 0:02:49]} 5. e3 {[%clk 0:02:59]}  d6 {[%clk 0:02:45]} 6. Nc3 {[%clk 0:02:56]}  Nbd7 {[%clk 0:02:44]} 7. Be2 {[%clk 0:02:55]}  g6 {[%clk 0:02:43]} 8. O-O {[%clk 0:02:54]}  Bg7 {[%clk 0:02:44]} 9. Nd2 {[%clk 0:02:44]}  O-O {[%clk 0:02:41]} 10. Bf3 {[%clk 0:02:43]}  Qc8 {[%clk 0:02:35]} 11. h4 {[%clk 0:02:36]}  Re8 {[%clk 0:02:33]} 12. Bg3 {[%clk 0:02:32]}  a6 {[%clk 0:02:31]} 13. Rc1 {[%clk 0:02:29]}  Bxf3 {[%clk 0:02:26]} 14. Qxf3 {[%clk 0:02:28]}  Nh5 {[%clk 0:02:23]} 15. Bh2 {[%clk 0:02:27]}  Qd8 {[%clk 0:02:14]} 16. g4 {[%clk 0:02:26]}  Nhf6 {[%clk 0:02:12]} 17. h5 {[%clk 0:02:11]}  gxh5 {[%clk 0:02:07]} 18. gxh5 {[%clk 0:02:11]}  Bh6 {[%clk 0:02:03]} 19. Kh1 {[%clk 0:02:11]}  Kh8 {[%clk 0:02:03]} 20. Rg1 {[%clk 0:02:06]}  Qe7 {[%clk 0:02:02]} 21. d5 {[%clk 0:01:40]}  Rg8 {[%clk 0:01:54]} 22. Nde4 {[%clk 0:01:29]}  Nxe4 {[%clk 0:01:53]} 23. Nxe4 {[%clk 0:01:28]}  f5 {[%clk 0:01:50]} 24. Nc3 {[%clk 0:01:28]}  Ne5 {[%clk 0:01:38]} 25. Qh3 {[%clk 0:01:05]}  Nxc4 {[%clk 0:01:28]} 26. Ne2 {[%clk 0:00:52]}  exd5 {[%clk 0:01:24]} 27. Qxf5 {[%clk 0:00:52]}  Rxg1+ {[%clk 0:01:17]} 28. Rxg1 {[%clk 0:00:51]}  c6 {[%clk 0:01:11]} 29. Nd4 {[%clk 0:00:39]}  Rf8 {[%clk 0:00:56]} 30. Nxc6 {[%clk 0:00:37]}  Qe8 {[%clk 0:00:33]} 31. Qxd5 {[%clk 0:00:37]}  b5 {[%clk 0:00:27]} 32. Qd4+ {[%clk 0:00:28]}  Ne5 {[%clk 0:00:22]} 33. Nxe5 {[%clk 0:00:27]}  Bg7 {[%clk 0:00:14]} 34. Rxg7 {[%clk 0:00:26]}  Kxg7 {[%clk 0:00:11]} 35. Nd7+ {[%clk 0:00:18]}  Kh6 {[%clk 0:00:10]} 36. Nxf8 {[%clk 0:00:17]}  Qxf8 {[%clk 0:00:09]} 37. Qf4+ {[%clk 0:00:17]}  Qxf4 {[%clk 0:00:08]} 38. Bxf4+ {[%clk 0:00:18]}  Kxh5 {[%clk 0:00:09]} 39. Bxd6 {[%clk 0:00:19]}  Kg4 {[%clk 0:00:09]} 40. Kg2 {[%clk 0:00:19]} 1-0


[Site "https://www.chess.com"]

[Event "Titled Tuesday Blitz October 5 2021"]
[White "Babazada, Khazar"]
[Black "Yakubboev, Nodirbek"]
[WhiteFideId "13413554"]
[BlackFideId "14203987"]
[WhiteElo "2302"]
[BlackElo "2464"]
[Result "1-0"]
[Round "10"]
[TimeControl "180+1"]
[Date "2021.10.05"]
[WhiteClock "0:00:10"]
[BlackClock "0:00:03"]

1. e4 {[%clk 0:03:00]}  e5 {[%clk 0:02:59]} 2. Nf3 {[%clk 0:03:00]}  Nc6 {[%clk 0:02:59]} 3. Bb5 {[%clk 0:03:00]}  Nf6 {[%clk 0:03:00]} 4. O-O {[%clk 0:02:59]}  Nxe4 {[%clk 0:03:00]} 5. d4 {[%clk 0:02:59]}  Nd6 {[%clk 0:02:59]} 6. dxe5 {[%clk 0:02:59]}  Nxb5 {[%clk 0:02:59]} 7. a4 {[%clk 0:02:59]}  Nbd4 {[%clk 0:02:56]} 8. Nxd4 {[%clk 0:03:00]}  d6 {[%clk 0:02:54]} 9. Nxc6 {[%clk 0:02:54]}  bxc6 {[%clk 0:02:52]} 10. Qf3 {[%clk 0:02:55]}  dxe5 {[%clk 0:02:31]} 11. Qxc6+ {[%clk 0:02:49]}  Bd7 {[%clk 0:02:31]} 12. Qe4 {[%clk 0:02:49]}  Bd6 {[%clk 0:02:29]} 13. Nc3 {[%clk 0:02:43]}  O-O {[%clk 0:02:25]} 14. Be3 {[%clk 0:02:43]}  a6 {[%clk 0:02:20]} 15. Rfd1 {[%clk 0:02:40]}  Rb8 {[%clk 0:02:03]} 16. b3 {[%clk 0:02:35]}  Kh8 {[%clk 0:02:03]} 17. Qc4 {[%clk 0:02:33]}  Qc8 {[%clk 0:02:03]} 18. Ne4 {[%clk 0:02:24]}  Bb4 {[%clk 0:00:44]} 19. Bc5 {[%clk 0:01:57]}  Be6 {[%clk 0:00:44]} 20. Qe2 {[%clk 0:01:56]}  Re8 {[%clk 0:00:41]} 21. Bxb4 {[%clk 0:01:52]}  Rxb4 {[%clk 0:00:41]} 22. Nc5 {[%clk 0:01:53]}  a5 {[%clk 0:00:40]} 23. Rd2 {[%clk 0:01:45]}  Bg4 {[%clk 0:00:36]} 24. f3 {[%clk 0:01:44]}  Bf5 {[%clk 0:00:36]} 25. Rad1 {[%clk 0:01:43]}  h5 {[%clk 0:00:35]} 26. Qe3 {[%clk 0:01:42]}  f6 {[%clk 0:00:33]} 27. Rd5 {[%clk 0:01:32]}  Qa8 {[%clk 0:00:24]} 28. Qf2 {[%clk 0:01:23]}  Kh7 {[%clk 0:00:20]} 29. Nd7 {[%clk 0:01:18]}  Bxd7 {[%clk 0:00:14]} 30. Rxd7 {[%clk 0:01:19]}  Qc6 {[%clk 0:00:15]} 31. R1d2 {[%clk 0:01:10]}  h4 {[%clk 0:00:10]} 32. Qa7 {[%clk 0:01:05]}  Qb6+ {[%clk 0:00:08]} 33. Qxb6 {[%clk 0:01:03]}  cxb6 {[%clk 0:00:09]} 34. Rb7 {[%clk 0:01:03]}  Kg6 {[%clk 0:00:07]} 35. Rdd7 {[%clk 0:01:03]}  Rg8 {[%clk 0:00:07]} 36. Kf2 {[%clk 0:00:58]}  Kf5 {[%clk 0:00:02]} 37. Ke3 {[%clk 0:00:52]}  Rc8 {[%clk 0:00:02]} 38. Rbc7 {[%clk 0:00:50]}  Rxc7 {[%clk 0:00:02]} 39. Rxc7 {[%clk 0:00:51]}  g5 {[%clk 0:00:02]} 40. g3 {[%clk 0:00:47]}  hxg3 {[%clk 0:00:02]} 41. hxg3 {[%clk 0:00:48]}  g4 {[%clk 0:00:03]} 42. fxg4+ {[%clk 0:00:37]}  Rxg4 {[%clk 0:00:04]} 43. Kf3 {[%clk 0:00:38]}  e4+ {[%clk 0:00:04]} 44. Kf2 {[%clk 0:00:36]}  e3+ {[%clk 0:00:05]} 45. Kxe3 {[%clk 0:00:34]}  Rxg3+ {[%clk 0:00:05]} 46. Kf2 {[%clk 0:00:33]}  Rh3 {[%clk 0:00:05]} 47. Rc6 {[%clk 0:00:32]}  Ke5 {[%clk 0:00:05]} 48. Rxb6 {[%clk 0:00:30]}  Rh2+ {[%clk 0:00:05]} 49. Ke3 {[%clk 0:00:30]}  Rxc2 {[%clk 0:00:06]} 50. Rb5+ {[%clk 0:00:27]}  Ke6 {[%clk 0:00:05]} 51. Kd3 {[%clk 0:00:26]}  Rc6 {[%clk 0:00:04]} 52. Rxa5 {[%clk 0:00:24]}  Rb6 {[%clk 0:00:04]} 53. Kc4 {[%clk 0:00:23]}  f5 {[%clk 0:00:05]} 54. Ra8 {[%clk 0:00:22]}  Kf7 {[%clk 0:00:04]} 55. a5 {[%clk 0:00:17]}  Re6 {[%clk 0:00:03]} 56. Rd8 {[%clk 0:00:16]}  f4 {[%clk 0:00:03]} 57. Rd1 {[%clk 0:00:16]}  f3 {[%clk 0:00:03]} 58. b4 {[%clk 0:00:17]}  Ke7 {[%clk 0:00:02]} 59. b5 {[%clk 0:00:16]}  f2 {[%clk 0:00:02]} 60. Rf1 {[%clk 0:00:16]}  Rf6 {[%clk 0:00:02]} 61. a6 {[%clk 0:00:16]}  Kd6 {[%clk 0:00:03]} 62. a7 {[%clk 0:00:16]}  Rf4+ {[%clk 0:00:03]} 63. Kb3 {[%clk 0:00:15]}  Rf8 {[%clk 0:00:04]} 64. Kb4 {[%clk 0:00:12]}  Kc7 {[%clk 0:00:03]} 65. Rxf2 {[%clk 0:00:09]}  Ra8 {[%clk 0:00:03]} 66. Kc5 {[%clk 0:00:10]} 1-0


[Site "https://www.chess.com"]

[Event "Titled Tuesday Blitz October 5 2021"]
[White "Belenkaya, Dina"]
[Black "Pires, Marcos Vinicius Torsani"]
[WhiteFideId "24142654"]
[BlackFideId "2118939"]
[WhiteElo "2247"]
[BlackElo "2273"]
[Result "0-1"]
[Round "10"]
[TimeControl "180+1"]
[Date "2021.10.05"]
[WhiteClock "0:00:05"]
[BlackClock "0:00:04"]

1. Nf3 {[%clk 0:03:00]}  c6 {[%clk 0:03:00]} 2. g3 {[%clk 0:03:01]}  d5 {[%clk 0:03:01]} 3. Bg2 {[%clk 0:03:01]}  Bf5 {[%clk 0:03:01]} 4. O-O {[%clk 0:02:59]}  e6 {[%clk 0:03:01]} 5. d3 {[%clk 0:03:00]}  Bd6 {[%clk 0:03:01]} 6. Nbd2 {[%clk 0:03:00]}  Ne7 {[%clk 0:03:00]} 7. e4 {[%clk 0:02:58]}  Bg6 {[%clk 0:03:00]} 8. Re1 {[%clk 0:02:53]}  O-O {[%clk 0:02:59]} 9. Nb3 {[%clk 0:02:44]}  Nd7 {[%clk 0:02:57]} 10. exd5 {[%clk 0:02:44]}  cxd5 {[%clk 0:02:54]} 11. c4 {[%clk 0:02:35]}  a5 {[%clk 0:02:41]} 12. Nbd4 {[%clk 0:02:24]}  Nc5 {[%clk 0:02:35]} 13. Bf1 {[%clk 0:02:13]}  Rc8 {[%clk 0:02:31]} 14. Nb5 {[%clk 0:02:11]}  Bb8 {[%clk 0:02:30]} 15. Bg5 {[%clk 0:01:57]}  Re8 {[%clk 0:02:08]} 16. Rc1 {[%clk 0:01:29]}  h6 {[%clk 0:02:05]} 17. Be3 {[%clk 0:01:23]}  dxc4 {[%clk 0:01:59]} 18. Bxc5 {[%clk 0:01:09]}  Rxc5 {[%clk 0:01:55]} 19. dxc4 {[%clk 0:01:10]}  Qxd1 {[%clk 0:01:42]} 20. Rexd1 {[%clk 0:01:11]}  Bh5 {[%clk 0:01:39]} 21. Rd3 {[%clk 0:01:07]}  Bg6 {[%clk 0:01:31]} 22. Rd2 {[%clk 0:01:05]}  Rec8 {[%clk 0:01:31]} 23. Nfd4 {[%clk 0:01:01]}  e5 {[%clk 0:01:25]} 24. Nb3 {[%clk 0:01:01]}  R5c6 {[%clk 0:01:15]} 25. Rd7 {[%clk 0:01:01]}  Nf5 {[%clk 0:01:06]} 26. Rxb7 {[%clk 0:00:58]}  a4 {[%clk 0:00:54]} 27. Na5 {[%clk 0:00:58]}  Ra6 {[%clk 0:00:46]} 28. b4 {[%clk 0:00:23]}  axb3 {[%clk 0:00:46]} 29. Nxb3 {[%clk 0:00:23]}  Rxa2 {[%clk 0:00:46]} 30. c5 {[%clk 0:00:22]}  Rb2 {[%clk 0:00:32]} 31. Bc4 {[%clk 0:00:22]}  Nd4 {[%clk 0:00:22]} 32. N3xd4 {[%clk 0:00:22]}  exd4 {[%clk 0:00:23]} 33. c6 {[%clk 0:00:12]}  Be5 {[%clk 0:00:22]} 34. c7 {[%clk 0:00:10]}  Kh7 {[%clk 0:00:20]} 35. f4 {[%clk 0:00:10]}  Bxc7 {[%clk 0:00:11]} 36. Rxc7 {[%clk 0:00:11]}  Re8 {[%clk 0:00:08]} 37. Nxd4 {[%clk 0:00:10]}  Re4 {[%clk 0:00:07]} 38. Nf3 {[%clk 0:00:08]}  Re3 {[%clk 0:00:07]} 39. Ne5 {[%clk 0:00:08]}  Be4 {[%clk 0:00:06]} 40. Bf1 {[%clk 0:00:06]}  Ra3 {[%clk 0:00:05]} 41. Nxf7 {[%clk 0:00:06]}  Raa2 {[%clk 0:00:05]} 42. Ne5 {[%clk 0:00:05]}  Rxh2 {[%clk 0:00:05]} 43. Ng4 {[%clk 0:00:05]}  Rh1# {[%clk 0:00:04]} 0-1


[Site "https://www.chess.com"]

[Event "Titled Tuesday Blitz October 5 2021"]
[White "Bilan, Danila"]
[Black "Skuhala, Barbara"]
[WhiteFideId "24161918"]
[BlackFideId "14605465"]
[WhiteElo "2164"]
[BlackElo "2121"]
[Result "0-1"]
[Round "10"]
[TimeControl "180+1"]
[Date "2021.10.05"]
[WhiteClock "0:00:03"]
[BlackClock "0:01:01"]

1. d4 {[%clk 0:03:00]}  d5 {[%clk 0:02:59]} 2. Nf3 {[%clk 0:02:58]}  Nf6 {[%clk 0:02:59]} 3. c4 {[%clk 0:02:57]}  e6 {[%clk 0:02:59]} 4. Nc3 {[%clk 0:02:56]}  c6 {[%clk 0:02:58]} 5. Bg5 {[%clk 0:02:47]}  Be7 {[%clk 0:02:51]} 6. e3 {[%clk 0:02:43]}  Nbd7 {[%clk 0:02:38]} 7. cxd5 {[%clk 0:02:41]}  exd5 {[%clk 0:02:37]} 8. Bd3 {[%clk 0:02:41]}  O-O {[%clk 0:02:38]} 9. O-O {[%clk 0:02:40]}  Re8 {[%clk 0:02:38]} 10. Qc2 {[%clk 0:02:41]}  h6 {[%clk 0:02:35]} 11. Bh4 {[%clk 0:02:41]}  Ne4 {[%clk 0:02:28]} 12. Bxe7 {[%clk 0:02:34]}  Qxe7 {[%clk 0:02:27]} 13. Bxe4 {[%clk 0:02:26]}  dxe4 {[%clk 0:01:55]} 14. Nd2 {[%clk 0:02:26]}  f5 {[%clk 0:01:54]} 15. Ne2 {[%clk 0:02:22]}  Nf6 {[%clk 0:01:54]} 16. Qc5 {[%clk 0:01:48]}  Qxc5 {[%clk 0:01:49]} 17. dxc5 {[%clk 0:01:47]}  Nd5 {[%clk 0:01:50]} 18. Nc4 {[%clk 0:01:35]}  b6 {[%clk 0:01:46]} 19. Nd6 {[%clk 0:01:28]}  Rd8 {[%clk 0:01:43]} 20. Nxc8 {[%clk 0:01:25]}  Raxc8 {[%clk 0:01:37]} 21. Nd4 {[%clk 0:00:55]}  f4 {[%clk 0:01:19]} 22. cxb6 {[%clk 0:00:27]}  axb6 {[%clk 0:01:16]} 23. Ne6 {[%clk 0:00:20]}  Rd6 {[%clk 0:01:16]} 24. Nxf4 {[%clk 0:00:15]}  Nxf4 {[%clk 0:01:16]} 25. exf4 {[%clk 0:00:16]}  Rd2 {[%clk 0:01:16]} 26. Rfe1 {[%clk 0:00:12]}  Rxb2 {[%clk 0:01:15]} 27. Rxe4 {[%clk 0:00:11]}  c5 {[%clk 0:01:16]} 28. g3 {[%clk 0:00:04]}  c4 {[%clk 0:01:16]} 29. Ree1 {[%clk 0:00:04]}  c3 {[%clk 0:01:16]} 30. Rec1 {[%clk 0:00:02]}  b5 {[%clk 0:01:16]} 31. a3 {[%clk 0:00:02]}  c2 {[%clk 0:01:10]} 32. Kf1 {[%clk 0:00:02]}  Rc3 {[%clk 0:01:10]} 33. Ke2 {[%clk 0:00:02]}  Rc4 {[%clk 0:01:09]} 34. Kd2 {[%clk 0:00:03]}  Kf7 {[%clk 0:01:09]} 35. f3 {[%clk 0:00:02]}  Kf6 {[%clk 0:01:09]} 36. h4 {[%clk 0:00:03]}  Kf5 {[%clk 0:01:09]} 37. Ke2 {[%clk 0:00:03]}  Ke6 {[%clk 0:01:08]} 38. Kf2 {[%clk 0:00:04]}  Kd5 {[%clk 0:01:08]} 39. Ke2 {[%clk 0:00:04]}  Kd4 {[%clk 0:01:08]} 40. Kd2 {[%clk 0:00:05]}  Rc3 {[%clk 0:01:06]} 41. a4 {[%clk 0:00:05]}  Rd3+ {[%clk 0:01:05]} 42. Ke2 {[%clk 0:00:05]}  Re3+ {[%clk 0:01:05]} 43. Kf2 {[%clk 0:00:05]}  b4 {[%clk 0:01:01]} 44. a5 {[%clk 0:00:05]}  Ra3 {[%clk 0:01:01]} 45. a6 {[%clk 0:00:04]}  Rxa1 {[%clk 0:01:00]} 46. Rxa1 {[%clk 0:00:05]}  Rb1 {[%clk 0:01:01]} 47. Rxb1 {[%clk 0:00:01]}  cxb1=Q {[%clk 0:01:01]} 48. a7 {[%clk 0:00:02]}  Qa2+ {[%clk 0:01:01]} 49. Kg1 {[%clk 0:00:02]}  Qxa7 {[%clk 0:01:02]} 50. Kg2 {[%clk 0:00:02]}  Ke3 {[%clk 0:01:01]} 51. Kh3 {[%clk 0:00:03]}  Kxf3 {[%clk 0:01:01]} 0-1


[Site "https://www.chess.com"]

[Event "Titled Tuesday Blitz October 5 2021"]
[White "Chitlange Sakshi"]
[Black "Bodnaruk, Anastasia"]
[WhiteFideId "35002899"]
[BlackFideId "4181751"]
[WhiteElo "1787"]
[BlackElo "2406"]
[Result "0-1"]
[Round "10"]
[TimeControl "180+1"]
[Date "2021.10.05"]
[WhiteClock "0:00:01"]
[BlackClock "0:00:10"]

1. d4 {[%clk 0:03:00]}  Nf6 {[%clk 0:02:59]} 2. c4 {[%clk 0:03:00]}  g6 {[%clk 0:02:59]} 3. Nc3 {[%clk 0:03:00]}  Bg7 {[%clk 0:02:59]} 4. e4 {[%clk 0:03:00]}  d6 {[%clk 0:02:59]} 5. Be2 {[%clk 0:03:00]}  O-O {[%clk 0:03:00]} 6. Bg5 {[%clk 0:03:01]}  Na6 {[%clk 0:02:59]} 7. Nf3 {[%clk 0:03:01]}  h6 {[%clk 0:02:58]} 8. Be3 {[%clk 0:03:00]}  e5 {[%clk 0:02:56]} 9. O-O {[%clk 0:02:59]}  c6 {[%clk 0:02:50]} 10. d5 {[%clk 0:02:51]}  Ng4 {[%clk 0:02:43]} 11. Bc1 {[%clk 0:02:50]}  f5 {[%clk 0:02:43]} 12. g3 {[%clk 0:02:51]}  Nc5 {[%clk 0:02:38]} 13. Nh4 {[%clk 0:02:43]}  Kh7 {[%clk 0:02:09]} 14. exf5 {[%clk 0:02:40]}  gxf5 {[%clk 0:02:09]} 15. Nxf5 {[%clk 0:02:40]}  Nxh2 {[%clk 0:01:37]} 16. Kxh2 {[%clk 0:02:32]}  Bxf5 {[%clk 0:01:37]} 17. Kg2 {[%clk 0:02:26]}  Qd7 {[%clk 0:01:35]} 18. Rh1 {[%clk 0:02:25]}  Ne4 {[%clk 0:01:31]} 19. Nxe4 {[%clk 0:02:17]}  Bxe4+ {[%clk 0:01:31]} 20. f3 {[%clk 0:02:18]}  Bg6 {[%clk 0:01:28]} 21. Bxh6 {[%clk 0:01:43]}  Bxh6 {[%clk 0:01:24]} 22. Qd2 {[%clk 0:01:43]}  Qg7 {[%clk 0:01:24]} 23. Rh4 {[%clk 0:01:05]}  Rf6 {[%clk 0:01:04]} 24. Rah1 {[%clk 0:01:03]}  Bf5 {[%clk 0:00:54]} 25. g4 {[%clk 0:01:00]}  e4 {[%clk 0:00:45]} 26. g5 {[%clk 0:00:30]}  Rg8 {[%clk 0:00:45]} 27. f4 {[%clk 0:00:23]}  Qf8 {[%clk 0:00:20]} 28. Kf1 {[%clk 0:00:20]}  Bh3+ {[%clk 0:00:15]} 29. R1xh3 {[%clk 0:00:18]}  Rxg5 {[%clk 0:00:16]} 30. Rxh6+ {[%clk 0:00:17]}  Rxh6 {[%clk 0:00:12]} 31. Qe3 {[%clk 0:00:11]}  Rf5 {[%clk 0:00:09]} 32. Rxh6+ {[%clk 0:00:07]}  Qxh6 {[%clk 0:00:09]} 33. Qxe4 {[%clk 0:00:04]}  Qxf4+ {[%clk 0:00:10]} 34. Qxf4 {[%clk 0:00:04]}  Rxf4+ {[%clk 0:00:10]} 35. Ke1 {[%clk 0:00:04]}  cxd5 {[%clk 0:00:10]} 36. cxd5 {[%clk 0:00:04]}  Kg6 {[%clk 0:00:09]} 37. Bd3+ {[%clk 0:00:03]}  Kf6 {[%clk 0:00:09]} 38. Kd2 {[%clk 0:00:04]}  Ke5 {[%clk 0:00:10]} 39. Kc3 {[%clk 0:00:01]}  Kxd5 {[%clk 0:00:10]} 40. b3 {[%clk 0:00:01]}  Rf3 {[%clk 0:00:10]} 41. Kd2 {[%clk 0:00:01]}  Kd4 {[%clk 0:00:10]} 0-1


[Site "https://www.chess.com"]

[Event "Titled Tuesday Blitz October 5 2021"]
[White "Cunha, Lucas Aguiar"]
[Black "Avramidou, Anastasia"]
[WhiteFideId "2125404"]
[BlackFideId "4239873"]
[WhiteElo "2361"]
[BlackElo "2183"]
[Result "1-0"]
[Round "10"]
[TimeControl "180+1"]
[Date "2021.10.05"]
[WhiteClock "0:01:00"]
[BlackClock "0:00:14"]

1. e4 {[%clk 0:03:00]}  e6 {[%clk 0:02:34]} 2. d4 {[%clk 0:03:00]}  d5 {[%clk 0:02:33]} 3. Nd2 {[%clk 0:03:00]}  Be7 {[%clk 0:02:32]} 4. Bd3 {[%clk 0:02:59]}  c5 {[%clk 0:02:31]} 5. dxc5 {[%clk 0:03:00]}  Nf6 {[%clk 0:02:30]} 6. Qe2 {[%clk 0:02:59]}  O-O {[%clk 0:02:29]} 7. Ngf3 {[%clk 0:02:57]}  Qc7 {[%clk 0:02:25]} 8. O-O {[%clk 0:02:55]}  Qxc5 {[%clk 0:02:23]} 9. a3 {[%clk 0:02:50]}  Qc7 {[%clk 0:02:21]} 10. e5 {[%clk 0:02:41]}  Nfd7 {[%clk 0:02:20]} 11. b4 {[%clk 0:02:41]}  Nc6 {[%clk 0:02:19]} 12. Bb2 {[%clk 0:02:38]}  f6 {[%clk 0:02:04]} 13. exf6 {[%clk 0:02:34]}  Nxf6 {[%clk 0:02:05]} 14. c4 {[%clk 0:02:24]}  Bd7 {[%clk 0:01:56]} 15. Rac1 {[%clk 0:02:19]}  Rae8 {[%clk 0:01:46]} 16. b5 {[%clk 0:02:00]}  Nd8 {[%clk 0:01:36]} 17. cxd5 {[%clk 0:01:58]}  Qb8 {[%clk 0:01:29]} 18. Ne5 {[%clk 0:01:37]}  exd5 {[%clk 0:01:09]} 19. Nxd7 {[%clk 0:01:35]}  Nxd7 {[%clk 0:01:10]} 20. Qh5 {[%clk 0:01:35]}  Nf6 {[%clk 0:00:53]} 21. Bxf6 {[%clk 0:01:32]}  h6 {[%clk 0:00:30]} 22. Qxd5+ {[%clk 0:01:15]}  Nf7 {[%clk 0:00:24]} 23. Qe4 {[%clk 0:01:11]}  Ng5 {[%clk 0:00:22]} 24. Bxg5 {[%clk 0:01:09]}  Bxg5 {[%clk 0:00:22]} 25. Qh7+ {[%clk 0:01:09]}  Kf7 {[%clk 0:00:22]} 26. Bg6+ {[%clk 0:01:09]}  Kf6 {[%clk 0:00:22]} 27. Bxe8 {[%clk 0:01:06]}  Bxd2 {[%clk 0:00:13]} 28. Qg6+ {[%clk 0:01:00]}  Ke7 {[%clk 0:00:14]} 29. Rcd1 {[%clk 0:01:00]} 1-0


[Site "https://www.chess.com"]